fUSD/lending_fUSD_20250708
["ID","MTS","AMOUNT","RATE_DAILY","PERIOD"]
[370299859,1751941876792,-552.85,0.0003112,7]
[370299860,1751941876801,-460.0,0.0003112,7]
[370299861,1751941876810,-460.0,0.0003112,7]
[370299862,1751941876819,-151.0,0.0003112,7]
[370299863,1751941876829,-151.0,0.0003112,7]
[370299864,1751941876838,-460.0,0.0003112,7]
[370299865,1751941876847,-460.0,0.0003112,7]
[370299866,1751941876857,-460.0,0.0003112,7]
[370299867,1751941876866,-460.0,0.0003112,7]
[370299868,1751941876875,-460.0,0.0003112,7]
[370299869,1751941876885,-500.0,0.00031129,7]
[370299870,1751941876894,-151.0,0.0003113,7]
[370299871,1751941876904,-151.0,0.0003113,7]
[370299872,1751941876913,-152.872685,0.0003113,7]
[370299873,1751941876922,-152.155013,0.0003113,7]
[370299874,1751941876932,-151.0,0.0003113,7]
[370299875,1751941876941,-151.752585,0.0003113,7]
[370299876,1751941876950,-152.300435,0.00031131,7]
[370299877,1751941876959,-151.0,0.00031131,7]
[370299878,1751941876968,-151.0,0.00031131,7]
[370299879,1751941876977,-151.0,0.00031131,7]
[370299880,1751941876986,-152.42579,0.00031131,7]
[370299881,1751941876995,-151.0,0.00031131,7]
[370299882,1751941877005,-151.0,0.00031131,7]
[370299883,1751941877015,-475.0,0.00031165,2]
[370299884,1751941877024,-489.999999,0.0003121,2]
[370299885,1751941877034,-151.0,0.0003123,7]
[370299886,1751941877043,-159.657982,0.0003123,7]
[370299887,1751941877052,-151.0,0.0003123,7]
[370299888,1751941877061,-151.0,0.0003123,7]
[370299889,1751941877071,-167.272091,0.0003123,7]
[370299890,1751941877080,-151.0,0.0003123,7]
[370299891,1751941877090,-182.367937,0.0003123,7]
[370299892,1751941877100,-151.0,0.0003123,7]
[370299893,1751941877109,-153.06149,0.0003123,7]
[370299894,1751941877118,-765.59,0.00031231,7]
[370299895,1751941877128,-605.26,0.00031231,7]
[370299896,1751941877139,-1650.45,0.00031231,7]
[370299897,1751941877150,-521.53,0.00031231,7]
[370299898,1751941877160,-820.97,0.00031231,7]
[370299899,1751941877170,-500.0,0.00031232,7]
[370299900,1751941877179,-252.74833467,0.00031232,7]
[370299901,1751941877188,-500.0,0.00031232,7]
[370299902,1751941877198,-500.0,0.00031232,7]
[370299903,1751941877208,-150.0,0.00031232,7]
[370299904,1751941877217,-500.0,0.00031232,7]
[370299905,1751941877227,-500.0,0.00031232,7]
[370299906,1751941877236,-500.0,0.00031232,7]
[370299907,1751941877247,-452.41016186,0.00031232,2]
[370299908,1751941877263,-1198.0,0.00031232,7]
[370299909,1751941877272,-500.0,0.00031232,2]
[370299910,1751941877282,-500.0,0.00031232,7]
[370299911,1751941877291,-500.0,0.00031232,60]
[370299912,1751941877301,-500.0,0.00031232,7]
[370299913,1751941877311,-566.0,0.00031232,7]
[370299914,1751941877320,-202.06634968,0.00031232,7]
[370299915,1751941877330,-200.40129929,0.00031232,7]
[370299916,1751941877339,-500.0,0.00031232,7]
[370299917,1751941877348,-580.0,0.00031232,7]
[370299918,1751941877358,-580.0,0.00031232,7]
[370299919,1751941877367,-460.0,0.00031232,7]
[370299920,1751941877376,-151.0,0.00031232,7]
[370299921,1751941877385,-151.0,0.00031232,7]
[370299922,1751941877394,-151.0,0.00031232,7]
[370299923,1751941877404,-584.75,0.00031232,7]
[370299924,1751941877413,-460.0,0.00031232,7]
[370299925,1751941877422,-460.0,0.00031232,7]
[370299926,1751941877431,-151.0,0.00031232,7]
[370299927,1751941877440,-857.46,0.00031232,7]
[370299928,1751941877450,-460.0,0.00031232,7]
[370299929,1751941877459,-460.0,0.00031232,7]
[370299930,1751941877468,-460.0,0.00031232,7]
[370299931,1751941877481,-167.442361,0.00031232,7]
[370299932,1751941877491,-151.0,0.00031232,7]
[370299933,1751941877500,-460.0,0.00031232,7]
[370299934,1751941877509,-460.0,0.00031232,7]
[370299935,1751941877519,-460.0,0.00031232,7]
[370299936,1751941877529,-460.0,0.00031232,7]
[370299937,1751941877538,-694.68,0.00031232,7]
[370299938,1751941877547,-460.0,0.00031232,7]
[370299939,1751941877558,-190.81,0.00031232,7]
[370299940,1751941877569,-726.7,0.00031232,7]
[370299941,1751941877579,-460.0,0.00031232,7]
[370299942,1751941877588,-460.0,0.00031232,7]
[370299943,1751941877598,-460.0,0.00031232,7]
[370299944,1751941877607,-460.0,0.00031232,7]
[370299945,1751941877616,-460.0,0.00031232,7]
[370299946,1751941877626,-695.84,0.00031232,7]
[370299947,1751941877635,-151.0,0.00031232,7]
[370299948,1751941877646,-460.0,0.00031232,7]
[370299949,1751941877656,-460.0,0.00031232,7]
[370299950,1751941877665,-460.0,0.00031232,7]
[370299951,1751941877675,-672.92,0.00031232,7]
[370299952,1751941877685,-460.0,0.00031232,7]
[370299953,1751941877694,-460.0,0.00031232,7]
[370299954,1751941877703,-460.0,0.00031232,7]
[370299955,1751941877713,-460.0,0.00031232,7]
[370299956,1751941877722,-460.0,0.00031232,7]
[370299957,1751941877731,-460.0,0.00031232,7]
[370299958,1751941877741,-390.73037984,0.00031232,7]
[370299959,1751941877750,-684.91,0.00031232,7]
[370299960,1751941877759,-460.0,0.00031232,7]
[370299961,1751941877768,-151.0,0.00031232,7]
[370299962,1751941877777,-861.74,0.00031232,7]
[370299963,1751941877787,-151.0,0.00031232,7]
[370299964,1751941877796,-460.0,0.00031232,7]
[370299965,1751941877805,-460.0,0.00031232,7]
[370299966,1751941877815,-460.0,0.00031232,7]
[370299967,1751941877824,-460.0,0.00031232,7]
[370299968,1751941877834,-460.0,0.00031232,7]
[370299969,1751941877843,-301.452618,0.00031232,7]
[370299970,1751941877852,-460.0,0.00031232,7]
[370299971,1751941877862,-460.0,0.00031232,7]
[370299972,1751941877870,-460.0,0.00031232,7]
[370299973,1751941877880,-460.0,0.00031232,7]
[370299974,1751941877890,-847.27,0.00031232,7]
[370299975,1751941877899,-460.0,0.00031232,7]
[370299976,1751941877908,-462.07919823,0.00031232,7]
[370299977,1751941877917,-460.0,0.00031232,7]
[370299978,1751941877926,-752.26,0.00031232,7]
[370299979,1751941877936,-460.0,0.00031232,7]
[370299980,1751941877945,-460.0,0.00031232,7]
[370299981,1751941877954,-221.76069421,0.00031232,7]
[370299982,1751941877963,-460.0,0.00031232,7]
[370299983,1751941877973,-460.0,0.00031232,7]
[370299984,1751941877982,-460.0,0.00031232,7]
[370299985,1751941877991,-460.0,0.00031232,7]
[370299986,1751941878000,-460.0,0.00031232,7]
[370299987,1751941878010,-558.67286623,0.00031232,7]
[370299988,1751941878019,-151.0,0.00031232,7]
[370299989,1751941878028,-460.0,0.00031232,7]
[370299990,1751941878038,-490.0,0.00031232,7]
[370299991,1751941878047,-460.0,0.00031232,7]
[370299992,1751941878057,-1129.21,0.00031232,7]
[370299993,1751941878067,-460.0,0.00031232,7]
[370299994,1751941878077,-460.0,0.00031232,7]
[370299995,1751941878086,-460.0,0.00031232,7]
[370299996,1751941878096,-859.22,0.00031232,7]
[370299997,1751941878105,-496.05,0.00031232,7]
[370299998,1751941878116,-375.57118895,0.00031232,7]
[370299999,1751941878125,-727.29,0.00031232,7]
[370300000,1751941878135,-491.36,0.00031232,7]
[370300001,1751941878144,-460.0,0.00031232,7]
[370300002,1751941878153,-460.0,0.00031232,7]
[370300003,1751941878162,-460.0,0.00031232,7]
[370300004,1751941878172,-659.35,0.00031232,7]
[370300005,1751941878182,-1031.55,0.00031232,7]
[370300006,1751941878191,-151.0,0.00031232,7]
[370300007,1751941878201,-683.97,0.00031232,7]
[370300008,1751941878210,-648.01,0.00031232,7]
[370300009,1751941878220,-460.0,0.00031232,7]
[370300010,1751941878229,-1795.02,0.00031232,7]
[370300011,1751941878238,-460.0,0.00031232,7]
[370300012,1751941878248,-625.5,0.00031232,7]
[370300013,1751941878258,-529.46,0.00031232,7]
[370300014,1751941878267,-460.0,0.00031232,7]
[370300015,1751941878277,-741.27,0.00031232,7]
[370300016,1751941878286,-460.0,0.00031232,7]
[370300017,1751941878296,-596.71,0.00031232,7]
[370300018,1751941878306,-460.0,0.00031232,7]
[370300019,1751941878316,-565.98,0.00031232,7]
[370300020,1751941878325,-153.84317,0.00031232,7]
[370300021,1751941878335,-460.0,0.00031232,7]
[370300022,1751941878345,-460.0,0.00031232,7]
[370300023,1751941878355,-460.0,0.00031232,7]
[370300024,1751941878365,-739.48,0.00031232,7]
[370300025,1751941878374,-460.0,0.00031232,7]
[370300026,1751941878384,-333.38975191,0.00031232,7]
[370300027,1751941878394,-864.46,0.00031232,7]
[370300028,1751941878404,-460.0,0.00031232,7]
[370300029,1751941878413,-794.88,0.00031232,7]
[370300030,1751941878423,-460.0,0.00031232,7]
[370300031,1751941878432,-795.15,0.00031232,7]
[370300032,1751941878442,-577.73,0.00031232,7]
[370300033,1751941878451,-900.95,0.00031232,7]
[370300034,1751941878461,-460.0,0.00031232,7]
[370300035,1751941878471,-460.0,0.00031232,7]
[370300036,1751941878483,-460.0,0.00031232,7]
[370300037,1751941878492,-824.52,0.00031232,7]
[370300038,1751941878502,-707.54,0.00031232,7]
[370300039,1751941878511,-474.61804297,0.00031232,7]
[370300040,1751941878522,-460.0,0.00031232,7]
[370300041,1751941878531,-460.0,0.00031232,7]
[370300042,1751941878541,-460.0,0.00031232,7]
[370300043,1751941878552,-732.45,0.00031232,7]
[370300044,1751941878562,-460.0,0.00031232,7]
[370300045,1751941878571,-768.56,0.00031232,7]
[370300046,1751941878582,-707.7,0.00031232,7]
[370300047,1751941878591,-593.26,0.00031232,7]
[370300048,1751941878601,-460.0,0.00031232,7]
[370300049,1751941878610,-460.0,0.00031232,7]
[370300050,1751941878619,-258.275655,0.00031232,7]
[370300051,1751941878629,-672.14,0.00031232,7]
[370300052,1751941878640,-258.275655,0.00031232,7]
[370300053,1751941878650,-675.4,0.00031232,7]
[370300054,1751941878659,-460.0,0.00031232,7]
[370300055,1751941878668,-485.25303095,0.00031232,7]
[370300056,1751941878678,-460.0,0.00031232,7]
[370300057,1751941878688,-460.0,0.00031232,7]
[370300058,1751941878697,-716.386919,0.00031232,7]
[370300059,1751941878708,-460.0,0.00031232,7]
[370300060,1751941878717,-716.386919,0.00031232,7]
[370300061,1751941878727,-460.0,0.00031232,7]
[370300062,1751941878736,-335.54,0.00031232,7]
[370300063,1751941878745,-460.0,0.00031232,7]
[370300064,1751941878755,-727.11,0.00031232,7]
[370300065,1751941878765,-522.7718776,0.00031232,7]
[370300066,1751941878775,-547.51,0.00031232,7]
[370300067,1751941878785,-460.0,0.00031232,7]
[370300068,1751941878794,-542.06800986,0.00031232,7]
[370300069,1751941878804,-460.0,0.00031232,7]
[370300070,1751941878814,-577.08,0.00031232,7]
[370300071,1751941878823,-716.92,0.00031232,7]
[370300072,1751941878833,-460.0,0.00031232,7]
[370300073,1751941878843,-460.0,0.00031232,7]
[370300074,1751941878852,-460.0,0.00031232,7]
[370300075,1751941878862,-797.4,0.00031232,7]
[370300076,1751941878872,-460.0,0.00031232,7]
[370300077,1751941878881,-460.0,0.00031232,7]
[370300078,1751941878891,-460.0,0.00031232,7]
[370300079,1751941878900,-1640.32,0.00031232,7]
[370300080,1751941878911,-681.43,0.00031232,7]
[370300081,1751941878920,-460.0,0.00031232,7]
[370300082,1751941878930,-2804.1,0.00031232,7]
[370300083,1751941878940,-460.0,0.00031232,7]
[370300084,1751941878950,-525.58,0.00031232,7]
[370300085,1751941878959,-460.0,0.00031232,7]
[370300086,1751941878969,-460.0,0.00031232,7]
[370300087,1751941878978,-460.0,0.00031232,7]
[370300088,1751941878988,-460.0,0.00031232,7]
[370300089,1751941878998,-1291.01,0.00031232,7]
[370300090,1751941879008,-413.245056,0.00031232,7]
[370300091,1751941879018,-167.277439,0.00031232,7]
[370300092,1751941879027,-460.0,0.00031232,7]
[370300093,1751941879037,-385.978385,0.00031232,7]
[370300094,1751941879047,-460.0,0.00031232,7]
[370300095,1751941879057,-506.833832,0.00031232,7]
[370300096,1751941879067,-1520.65,0.00031232,7]
[370300097,1751941879077,-460.0,0.00031232,7]
[370300098,1751941879086,-695.98,0.00031232,7]
[370300099,1751941879097,-460.0,0.00031232,7]
[370300100,1751941879107,-781.09,0.00031232,7]
[370300101,1751941879118,-874.65,0.00031232,7]
[370300102,1751941879129,-460.0,0.00031232,7]
[370300103,1751941879139,-460.0,0.00031232,7]
[370300104,1751941879355,-460.0,0.00031232,7]
[370300105,1751941879365,-460.0,0.00031232,7]
[370300106,1751941879375,-460.0,0.00031232,7]
[370300107,1751941879385,-540.64,0.00031232,7]
[370300108,1751941879395,-460.0,0.00031232,7]
[370300109,1751941879405,-566.89,0.00031232,7]
[370300110,1751941879414,-200.798666,0.00031232,7]
[370300111,1751941879425,-964.86,0.00031232,7]
[370300112,1751941879567,-200.798666,0.00031232,7]
[370300113,1751941879577,-460.0,0.00031232,7]
[370300114,1751941879587,-750.54,0.00031232,7]
[370300115,1751941879597,-460.0,0.00031232,7]
[370300116,1751941879607,-460.0,0.00031232,7]
[370300117,1751941879616,-774.26,0.00031232,7]
[370300118,1751941879626,-521.58,0.00031232,7]
[370300119,1751941879637,-524.98496789,0.00031232,7]
[370300120,1751941879647,-460.0,0.00031232,7]
[370300121,1751941879656,-460.0,0.00031232,7]
[370300122,1751941879666,-644.93,0.00031232,7]
[370300123,1751941879675,-3222.1,0.00031232,7]
[370300124,1751941879685,-460.0,0.00031232,7]
[370300125,1751941879694,-460.0,0.00031232,7]
[370300126,1751941879704,-460.0,0.00031232,7]
[370300127,1751941879713,-517.39519544,0.00031232,7]
[370300128,1751941879723,-460.0,0.00031232,7]
[370300129,1751941879733,-556.02442983,0.00031232,7]
[370300130,1751941879742,-773.049683,0.00031232,7]
[370300131,1751941879752,-460.0,0.00031232,7]
[370300132,1751941879761,-460.0,0.00031232,7]
[370300133,1751941879771,-1656.789343,0.00031232,7]
[370300134,1751941879781,-686.42,0.00031232,7]
[370300135,1751941879790,-773.049683,0.00031232,7]
[370300136,1751941879800,-636.64,0.00031232,7]
[370300137,1751941879810,-460.0,0.00031232,7]
[370300138,1751941879821,-1656.789343,0.00031232,7]
[370300139,1751941879831,-1580.2,0.00031232,7]
[370300140,1751941879841,-460.0,0.00031232,7]
[370300141,1751941879851,-460.0,0.00031232,7]
[370300142,1751941879860,-650.64,0.00031232,7]
[370300143,1751941879870,-460.0,0.00031232,7]
[370300144,1751941879880,-664.74,0.00031232,7]
[370300145,1751941879889,-1231.87,0.00031232,7]
[370300146,1751941879899,-460.0,0.00031232,7]
[370300147,1751941879908,-460.0,0.00031232,7]
[370300148,1751941879918,-661.7,0.00031232,7]
[370300149,1751941879927,-460.0,0.00031232,7]
[370300150,1751941879937,-1589.43,0.00031232,7]
[370300151,1751941879946,-512.04,0.00031232,7]
[370300152,1751941879955,-460.0,0.00031232,7]
[370300153,1751941879965,-300.0,0.00031232,2]
[370300154,1751941879974,-460.0,0.00031232,7]
[370300155,1751941879984,-495.95,0.00031232,7]
[370300156,1751941879994,-460.0,0.00031232,7]
[370300157,1751941880003,-460.0,0.00031232,7]
[370300158,1751941880013,-460.0,0.00031232,7]
[370300159,1751941880022,-760.43,0.00031232,7]
[370300160,1751941880032,-489.62,0.00031232,7]
[370300161,1751941880041,-218.38465211,0.00031232,7]
[370300162,1751941880051,-344.415785,0.00031232,7]
[370300163,1751941880060,-545.56,0.00031232,7]
[370300164,1751941880070,-344.415785,0.00031232,7]
[370300165,1751941880080,-460.0,0.00031232,7]
[370300166,1751941880089,-460.0,0.00031232,7]
[370300167,1751941880099,-512.95,0.00031232,7]
[370300168,1751941880108,-1798.1,0.00031232,7]
[370300169,1751941880118,-460.0,0.00031232,7]
[370300170,1751941880127,-460.0,0.00031232,7]
[370300171,1751941880137,-460.0,0.00031232,7]
[370300172,1751941880147,-460.0,0.00031232,7]
[370300173,1751941880156,-500.19,0.00031232,7]
[370300174,1751941880165,-632.57,0.00031232,7]
[370300175,1751941880175,-460.0,0.00031232,7]
[370300176,1751941880185,-460.0,0.00031232,7]
[370300177,1751941880195,-460.0,0.00031232,7]
[370300178,1751941880204,-460.0,0.00031232,7]
[370300179,1751941880214,-460.0,0.00031232,7]
[370300180,1751941880223,-460.0,0.00031232,7]
[370300181,1751941880233,-460.0,0.00031232,7]
[370300182,1751941880242,-151.0,0.00031232,7]
[370300183,1751941880251,-460.0,0.00031232,7]
[370300184,1751941880261,-460.0,0.00031232,7]
[370300185,1751941880270,-208.909034,0.00031232,7]
[370300186,1751941880280,-879.29,0.00031232,7]
[370300187,1751941880290,-704.92,0.00031232,7]
[370300188,1751941880299,-496.6,0.00031232,7]
[370300189,1751941880309,-1058.42,0.00031232,7]
[370300190,1751941880319,-987.66,0.00031232,7]
[370300191,1751941880328,-154.16188,0.00031232,7]
[370300192,1751941880338,-460.0,0.00031232,7]
[370300193,1751941880347,-187.01364,0.00031232,7]
[370300194,1751941880357,-460.0,0.00031232,7]
[370300195,1751941880367,-187.01364,0.00031232,7]
[370300196,1751941880376,-460.0,0.00031232,7]
[370300197,1751941880385,-639.08,0.00031232,7]
[370300198,1751941880394,-460.0,0.00031232,7]
[370300199,1751941880404,-250.67457058,0.00031232,7]
[370300200,1751941880413,-914.42,0.00031232,7]
[370300201,1751941880423,-2293.03,0.00031232,7]
[370300202,1751941880433,-771.77,0.00031232,7]
[370300203,1751941880442,-460.0,0.00031232,7]
[370300204,1751941880451,-460.0,0.00031232,7]
[370300205,1751941880461,-738.52,0.00031232,7]
[370300206,1751941880470,-939.66,0.00031232,7]
[370300207,1751941880482,-483.92,0.00031232,7]
[370300208,1751941880491,-713.62,0.00031232,7]
[370300209,1751941880502,-688.34,0.00031232,7]
[370300210,1751941880511,-151.0,0.00031232,7]
[370300211,1751941880524,-460.0,0.00031232,7]
[370300212,1751941880533,-1557.71,0.00031232,7]
[370300213,1751941880543,-1251.88,0.00031232,7]
[370300214,1751941880554,-650.21,0.00031232,7]
[370300215,1751941880564,-885.1,0.00031232,7]
[370300216,1751941880574,-460.0,0.00031232,7]
[370300217,1751941880585,-576.5,0.00031232,7]
[370300218,1751941880594,-386.04990167,0.00031232,7]
[370300219,1751941880603,-460.0,0.00031232,7]
[370300220,1751941880612,-943.29,0.00031232,7]
[370300221,1751941880621,-151.0,0.00031232,7]
[370300222,1751941880631,-3802.92,0.00031232,7]
[370300223,1751941880640,-460.0,0.00031232,7]
[370300224,1751941880650,-460.0,0.00031232,7]
[370300225,1751941880659,-460.0,0.00031232,7]
[370300226,1751941880668,-460.0,0.00031232,7]
[370300227,1751941880678,-533.07475431,0.00031232,7]
[370300228,1751941880689,-752.14,0.00031232,7]
[370300229,1751941880698,-899.61,0.00031232,7]
[370300230,1751941880708,-670.53,0.00031232,7]
[370300231,1751941880718,-670.65,0.00031232,7]
[370300232,1751941880727,-1576.93,0.00031232,7]
[370300233,1751941880737,-460.0,0.00031232,7]
[370300234,1751941880747,-1202.89,0.00031232,7]
[370300235,1751941880756,-460.0,0.00031232,7]
[370300236,1751941880765,-460.0,0.00031239,7]
[370300237,1751941880775,-584.75,0.00031239,7]
[370300238,1751941880785,-500.63,0.00031239,7]
[370300239,1751941880794,-286.25,0.00031244,2]
[370300240,1751941880803,-441.078767,0.00031302,7]
[370300241,1751941880813,-441.078767,0.00031302,7]
[370300242,1751941880822,-475.0,0.00031302,2]
[370300243,1751941880832,-4908.69387604,0.00031355,2]
[370300244,1751941880841,-460.0,0.00031383,7]
[370300245,1751941880851,-460.0,0.00031383,7]
[370300246,1751941880860,-460.0,0.00031383,7]
[370300247,1751941880870,-471.51,0.00031383,7]
[370300248,1751941880880,-825.78,0.00031383,7]
[370300249,1751941880889,-14649.94,0.00031383,7]
[370300250,1751941880899,-1433.74,0.00031383,7]
[370300251,1751941880908,-286.25,0.00031389,2]
[370300252,1751941880917,-460.0,0.00031393,7]
[370300253,1751941880926,-460.0,0.00031393,7]
[370300254,1751941880935,-795.67,0.00031393,7]
[370300255,1751941880944,-346.61359642,0.00031393,7]
[370300256,1751941880953,-460.0,0.00031393,7]
[370300257,1751941880962,-460.0,0.00031393,7]
[370300258,1751941880971,-460.0,0.00031393,7]
[370300259,1751941880980,-460.0,0.00031393,7]
[370300260,1751941880989,-460.0,0.00031393,7]
[370300261,1751941880998,-460.0,0.00031393,7]
[370300262,1751941881009,-381.39,0.00031393,7]
[370300263,1751941881018,-460.0,0.00031393,7]
[370300264,1751941881028,-460.0,0.00031393,7]
[370300265,1751941881037,-546.33,0.00031393,7]
[370300266,1751941881047,-460.0,0.00031393,7]
[370300267,1751941881055,-460.0,0.00031393,7]
[370300268,1751941881065,-460.0,0.00031393,7]
[370300269,1751941881074,-472.4,0.00031393,7]
[370300270,1751941881083,-460.0,0.00031393,7]
[370300271,1751941881092,-460.0,0.00031393,7]
[370300272,1751941881101,-210.58481115,0.00031393,7]
[370300273,1751941881111,-175.380449,0.00031393,7]
[370300274,1751941881120,-460.0,0.00031393,7]
[370300275,1751941881130,-151.0,0.00031393,7]
[370300276,1751941881139,-151.0,0.00031393,7]
[370300277,1751941881148,-460.0,0.00031393,7]
[370300278,1751941881157,-406.58,0.00031393,7]
[370300279,1751941881167,-286.44,0.00031393,7]
[370300280,1751941881175,-157.51515388,0.00031393,7]
[370300281,1751941881184,-151.0,0.00031393,7]
[370300282,1751941881194,-460.0,0.00031393,7]
[370300283,1751941881203,-357.52476517,0.00031393,7]
[370300284,1751941881212,-386.31589363,0.00031393,7]
[370300285,1751941881222,-475.69,0.00031393,7]
[370300286,1751941881231,-460.0,0.00031393,7]
[370300287,1751941881240,-151.0,0.00031393,7]
[370300288,1751941881250,-295.33767406,0.00031393,7]
[370300289,1751941881259,-460.0,0.00031393,7]
[370300290,1751941881268,-460.0,0.00031393,7]
[370300291,1751941881277,-460.0,0.00031393,7]
[370300292,1751941881287,-460.0,0.00031393,7]
[370300293,1751941881297,-460.0,0.00031393,7]
[370300294,1751941881308,-460.0,0.00031393,7]
[370300295,1751941881317,-460.0,0.00031393,7]
[370300296,1751941881327,-258.275655,0.00031393,7]
[370300297,1751941881336,-258.275655,0.00031393,7]
[370300298,1751941881345,-716.386919,0.00031393,7]
[370300299,1751941881354,-716.386919,0.00031393,7]
[370300300,1751941881364,-1574.36,0.00031393,7]
[370300301,1751941881372,-460.0,0.00031393,7]
[370300302,1751941881382,-1613.6,0.00031393,7]
[370300303,1751941881392,-719.33,0.00031393,7]
[370300304,1751941881402,-673.12,0.00031393,7]
[370300305,1751941881412,-460.0,0.00031393,7]
[370300306,1751941881421,-708.05,0.00031393,7]
[370300307,1751941881431,-948.82,0.00031393,7]
[370300308,1751941881439,-460.0,0.00031393,7]
[370300309,1751941881449,-496.19,0.00031393,7]
[370300310,1751941881458,-510.34680512,0.00031393,7]
[370300311,1751941881467,-736.72,0.00031393,7]
[370300312,1751941881478,-853.57,0.00031393,7]
[370300313,1751941881488,-460.0,0.00031393,7]
[370300314,1751941881497,-1296.79,0.00031393,7]
[370300315,1751941881506,-2941.08,0.00031393,7]
[370300316,1751941881517,-460.0,0.00031393,7]
[370300317,1751941881526,-460.0,0.00031393,7]
[370300318,1751941881535,-460.0,0.00031393,7]
[370300319,1751941881544,-460.0,0.00031393,7]
[370300320,1751941881556,-460.0,0.00031393,7]
[370300321,1751941881565,-460.0,0.00031393,7]
[370300322,1751941881574,-460.0,0.00031393,7]
[370300323,1751941881584,-1194.33,0.00031393,7]
[370300324,1751941881593,-1895.61,0.00031393,7]
[370300325,1751941881601,-202.34,0.00031393,7]
[370300326,1751941881610,-2040.43,0.00031393,7]
[370300327,1751941881619,-732.9,0.00031393,7]
[370300328,1751941881629,-1680.68,0.00031393,7]
[370300329,1751941881638,-1997.32,0.00031393,7]
[370300330,1751941881647,-576.34598061,0.00031393,7]
[370300331,1751941881657,-460.0,0.00031393,7]
[370300332,1751941881666,-460.0,0.00031393,7]
[370300333,1751941881676,-460.0,0.00031393,7]
[370300334,1751941881685,-1958.96,0.00031393,7]
[370300335,1751941881696,-460.0,0.00031393,7]
[370300336,1751941881705,-151.0,0.00031393,7]
[370300337,1751941881714,-460.0,0.00031393,7]
[370300338,1751941881725,-460.0,0.00031393,7]
[370300339,1751941881734,-460.0,0.00031393,7]
[370300340,1751941881744,-460.0,0.00031393,7]
[370300341,1751941881754,-746.74,0.00031393,7]
[370300342,1751941881769,-460.0,0.00031393,7]
[370300343,1751941881778,-460.0,0.00031393,7]
[370300344,1751941881789,-460.0,0.00031393,7]
[370300345,1751941881798,-460.0,0.00031393,7]
[370300346,1751941881807,-460.0,0.00031393,7]
[370300347,1751941881817,-922.2,0.00031393,7]
[370300348,1751941881826,-806.13,0.00031393,7]
[370300349,1751941881835,-460.0,0.00031393,7]
[370300350,1751941881845,-460.0,0.00031393,7]
[370300351,1751941881854,-460.0,0.00031393,7]
[370300352,1751941881864,-460.0,0.00031393,7]
[370300353,1751941881873,-460.0,0.00031393,7]
[370300354,1751941881882,-474.5205885,0.00031393,7]
[370300355,1751941881892,-460.0,0.00031393,7]
[370300356,1751941881901,-1077.15,0.00031393,7]
[370300357,1751941881911,-1580.18,0.00031393,7]
[370300358,1751941881920,-151.0,0.00031394,7]